Cogmind - Beta 17.1 @@@ ROGUE MODE // 2026.09.15 @ 13:12:11 Player: 7H-NLC Result: Destroyed by Y-64 Sentinel with Wave Gun Performance ------------- Evolutions (6) 3000 Regions Visited (18) 3600 Robots Destroyed (121) 605 Value Destroyed (9536) 9536 Prototype IDs (55) 1100 Alien Tech Used (0) 0 Bonus (10354) 10354 TOTAL SCORE: 28195 Bonus ------- High Alert Combat Kills 1078 Follower Combat Kills 4580 Entered Garrisons 1400 Used RIF Installer 3000 Aligned with FarCom 300 Friendly Fire -4 Cogmind --------- Core Integrity 0/1150 Matter 154/300 Energy 81/100 System Corruption 12% Temperature Cool (9) Movement Core (50) Location -4/Garrison Parts ------- > --- POWER (2) -------- (None) > --- PROPULSION (5) --- (None) > --- UTILITY (10) ----- Experimental Optical Array Advanced Signal Interpreter Relay Coupler [Grunt] (37) Relay Coupler [Specialist] (37) Relay Coupler [Hunter] (27) > --- WEAPON (2) ------- (None) > --- INVENTORY (5) ---- Light Antimatter Reactor Superbattery (0) Advanced Remote Force Field Relay Coupler [Specialist] (37) Heavy Pick Peak State ------------ > --- POWER ------------ Light Quantum Reactor Light Quantum Reactor > --- PROPULSION ------- Flying Fortress v7 Q-thruster > --- UTILITY ---------- High-capacity Storage Unit Improved Propulsion Shielding Advanced Remote Force Field Advanced Point Defense System Relay Coupler [Swarmer] Relay Coupler [Swarmer] Relay Coupler [Grunt] Relay Coupler [Sentry] Relay Coupler [Sentry] Relay Coupler [Hunter] > --- WEAPON ----------- Improved Remote Datajack Heavy Pick > --- INVENTORY -------- Improved Surge Thruster Improved Surge Thruster Field Propulsion Array Q-thruster Superbattery Improved Matter Compressor Advanced Weight Redist. System Experimental Sensor Array Transmission Jammer Improved Reaction Control System Relay Coupler [Swarmer] Relay Coupler [Brawler] Relay Coupler [Duelist] Relay Coupler [Specialist] Thief Drone Bay Nova Cannon Fusion Bomb Launcher Improved Remote Datajack [Rating: 122] Favorites ----------- Power Light Angular Momentum Engine Engine Light Angular Momentum Engine Power Core Micro Nuclear Core Reactor Light Quantum Reactor Propulsion Armored Treads Treads Armored Treads Wheel Wheel Flight Unit Flying Fortress v7 Utility High-capacity Storage Unit Device Advanced Weight Redist. System Storage High-capacity Storage Unit Processor Advanced Terrain Scan Processor Hackware Relay Coupler [Swarmer] Protection Improved Propulsion Shielding Weapon Heavy Laser Energy Gun Heavy Laser Energy Cannon Nova Cannon Ballistic Gun High-powered Shotgun Ballistic Cannon Heavy Flak Cannon Launcher Rocket Launcher Special Weapon Remote Datajack Slashing Weapon Ripper Piercing Weapon Heavy Pick Special Melee Weapon Datajack Build | -11 -10 -10 -10 -9 -8 -8 -7 -7 -6 -6 -6 -6 -5 -5 -4 -4 -4 -4 ------- Run | Yrd Mat Min Exi Min Mat Gar Fac Gar Fac Gar Fac Gar Fac Gar Fac Gar Fac Gar Slots Evolved 12 | . . . . . 4 . 2 . 2 . . . 2 . 2 . . . Power 1 | . . . . . . . . . . . . . . . 1 . . . Propulsion 3 | . . . . . 2 . . . . . . . . . 1 . . . Utility 8 | . . . . . 2 . 2 . 2 . . . 2 . . . . . Weapon . | . . . . . . . . . . . . . . . . . . . Parts Attached 191 | 7 1 1 1 1 34 14 6 18 3 14 2 27 16 8 5 16 13 4 Power 30 | 1 . . . . 2 1 1 3 1 3 . 4 4 1 1 6 1 1 Engine 14 | 1 . . . . 1 1 1 1 1 2 . 3 1 1 . 1 . . Core 9 | . . . . . 1 . . 2 . 1 . 1 2 . 1 1 . . Reactor 7 | . . . . . . . . . . . . . 1 . . 4 1 1 Propulsion 23 | 2 . . . . 10 2 . 3 . . . . . . 1 . 4 1 Treads 13 | . . . . . 9 2 . 2 . . . . . . . . . . Leg . | . . . . . . . . . . . . . . . . . . . Wheel 2 | 2 . . . . . . . . . . . . . . . . . . Hover . | . . . . . . . . . . . . . . . . . . . Flight 8 | . . . . . 1 . . 1 . . . . . . 1 . 4 1 Utility 106 | 2 1 1 . 1 11 6 4 11 1 11 1 18 10 7 2 10 7 2 Device 24 | 1 . 1 . 1 5 . 3 1 1 1 . 3 4 . . 2 1 . Storage 4 | 1 1 . . . . . . . . . . . 2 . . . . . Processor 7 | . . . . . 4 . . . . . 1 . . . . . 2 . Hackware 53 | . . . . . . 2 . 6 . 8 . 13 3 7 1 7 4 2 Protection 18 | . . . . . 2 4 1 4 . 2 . 2 1 . 1 1 . . Artifact . | . . . . . . . . . . . . . . . . . . . Weapon 32 | 2 . . 1 . 11 5 1 1 1 . 1 5 2 . 1 . 1 . Energy Gun 9 | 2 . . . . 4 2 . . . . . 1 . . . . . . Energy Cannon 2 | . . . . . . . . . . . . 1 . . 1 . . . Ballistic Gun 6 | . . . . . 4 1 . 1 . . . . . . . . . . Ballistic Cannon 1 | . . . . . . . . . . . . 1 . . . . . . Launcher 3 | . . . . . 1 1 . . . . . 1 . . . . . . Special Weapon 4 | . . . . . 1 . . . . . 1 . 1 . . . 1 . Impact Weapon . | . . . . . . . . . . . . . . . . . . . Slashing Weapon 2 | . . . . . 1 . . . 1 . . . . . . . . . Piercing Weapon 2 | . . . . . . . 1 . . . . 1 . . . . . . Special Melee Weapon 3 | . . . 1 . . 1 . . . . . . 1 . . . . . Unidentified Prototypes 8 | . . 1 . 1 2 . . . . . . . 1 . 1 . 2 . Parts Lost 52 | . . . . . 2 7 4 8 . 3 . 5 1 . . 2 6 14 Power 6 | . . . . . . . 1 . . 1 . 2 . . . . . 2 Propulsion 15 | . . . . . 1 3 . 4 . . . . . . . . 3 4 Utility 27 | . . . . . 1 3 2 3 . 2 . 3 1 . . 2 3 7 Weapon 4 | . . . . . . 1 1 1 . . . . . . . . . 1 Highest Loss Streak 12 | . . . . . 2 1 2 2 . 2 . 3 1 . . 1 5 12 To Critical Strikes 2 | . . . . . . . 1 . . . . . . . . . . 1 Average Backups 16 | 1 5 9 13 14 15 15 16 15 17 16 18 18 19 19 18 18 16 3 Power . | . . . . . . 1 1 1 1 1 . . 1 1 1 . 1 . Propulsion 2 | 1 2 2 2 3 2 2 1 . . . 2 2 2 2 1 3 1 . Utility 9 | . 2 5 7 7 5 6 10 11 15 14 13 12 12 12 12 11 10 3 Weapon 2 | . 1 2 3 4 4 4 2 1 1 1 3 3 2 2 2 1 1 . Tool/Special . | . . . . . . . . . . . . . . . . . . . Unused Backups 37 | . . . 2 2 11 3 . . . 2 3 2 1 2 . 4 1 4 Power 3 | . . . . . 1 . . . . . . . . . . 2 . . Propulsion 5 | . . . . . 1 . . . . . . . . . . 1 . 3 Utility 25 | . . . 2 2 6 2 . . . 2 3 2 1 2 . 1 1 1 Weapon 3 | . . . . . 3 . . . . . . . . . . . . . Tool/Special 1 | . . . . . . 1 . . . . . . . . . . . . Average Slot Usage (%) 86 | . 100 100 100 100 96 98 98 86 72 75 79 76 71 78 78 78 83 65 Engine 5 | . 14 14 14 14 6 9 6 5 5 4 6 3 4 5 5 . . . Core 1 | . . . . . 2 . . 1 . 1 . 2 . . . 3 5 2 Treads 13 | . . . . . 29 35 29 22 . . . . . . . . . . Wheel 2 | . 28 28 28 28 4 . . . . . . . . . . . . . Flight 3 | . . . . . . . . 1 6 6 6 6 5 5 10 10 18 9 Device 11 | . 14 14 14 14 17 9 14 9 5 6 19 7 19 11 10 7 4 4 Storage 7 | . 14 14 14 14 9 9 7 7 6 6 6 6 5 8 5 5 4 1 Processor 2 | . . . . . 8 . . . . . 4 . . . . . 6 10 Hackware 15 | . . . . . . 2 7 15 26 31 14 28 23 27 31 34 34 27 Protection 5 | . . . . . . 14 14 9 6 5 6 5 . 5 5 2 . . Energy Gun 4 | . 28 28 15 14 7 12 8 . . . . . . . . . . . Special Weapon 2 | . . . . . 1 . . . . . 3 5 4 5 5 2 3 2 Slashing Weapon 1 | . . . . . 3 1 . . 1 4 6 3 . . . . . . Piercing Weapon 1 | . . . . . . . 3 5 4 . . 2 3 5 5 4 . 3 Special Melee Weapon 1 | . . . 12 14 . 1 2 2 6 4 2 . . . . . . . Peak Build Rating 122 | 7 8 16 15 21 49 47 50 65 70 85 88 89 104 105 105 122 115 94 Average Rating 64 | 5 7 8 12 14 40 43 47 46 69 73 85 83 93 96 99 106 98 72 On Entrance 55 | . 7 8 9 15 15 44 43 42 65 70 84 87 84 88 93 98 104 89 Avg Prop Armor Cover (%) 18 | . . . . . 16 . . . . . . . . 31 . . . . Naked Turns . | . . . . . . . . . . . . . . . . . . . Heaviest Build 101 | 14 49 49 49 49 69 72 71 67 57 61 59 66 63 81 59 101 83 29 Greatest Support 82 | 20 20 20 20 20 82 82 82 82 59 59 59 59 59 59 67 67 67 30 Greatest Overweight (x) 26 | 1 2 2 2 2 5 1 1 1 . 1 . 1 1 26 . 1 8 1 Average Overweight (x) . | . . 2 2 2 . . . . . . . . . 1 . . . . Largest Inventory Capacity 20 | 8 20 20 20 20 20 20 20 20 20 20 20 20 20 20 20 20 20 5 Average Capacity 19 | 7 13 20 20 20 20 20 20 20 20 20 20 20 20 20 20 20 19 5 Most Carried 20 | 4 9 11 20 20 20 20 20 20 18 20 20 20 20 20 20 20 20 5 Average Carried 18 | 1 6 9 15 18 19 19 19 18 18 17 19 19 19 19 19 19 16 3 Final Capacity 20 | 8 20 20 20 20 20 20 20 20 20 20 20 20 20 20 20 20 5 5 Final Carried 20 | 4 9 11 20 19 20 20 20 18 18 20 19 20 20 20 19 20 5 5 Class Distribution -------------------- 30% | Mutant 25% | Botlord-Mutant 17% | Bothacker-Mutant 7% | Assassin 7% | Skirmisher 5% | Commander-Mutant 3% | Scavenger-Mutant Dominant Class ---------------- Mutant | -10/Materials Mutant | -10/Mines Mutant | -10/Exiles Mutant | -9/Mines Assassin | -8/Materials Mutant | -8/Garrison Mutant | -7/Factory Scavenger-Mutant | -7/Garrison Bothacker-Mutant | -6/Factory Bothacker-Mutant | -6/Garrison Bothacker-Mutant | -6/Factory Botlord-Mutant | -6/Garrison Commander-Mutant | -5/Factory Botlord-Mutant | -5/Garrison Botlord-Mutant | -4/Factory Botlord-Mutant | -4/Garrison Botlord-Mutant | -4/Factory Botlord-Scout | -4/Garrison Resources | -11 -10 -10 -10 -9 -8 -8 -7 -7 -6 -6 -6 -6 -5 -5 -4 -4 -4 -4 ----------- Run | Yrd Mat Min Exi Min Mat Gar Fac Gar Fac Gar Fac Gar Fac Gar Fac Gar Fac Gar Matter Collected 6176 | 227 53 55 375 20 631 910 110 269 47 290 200 834 714 406 89 599 185 162 Remotely . | . . . . . . . . . . . . . . . . . . . Salvage Created 5362 | 165 . . . . 1086 1268 229 726 . 676 . 542 20 168 . 482 . . Parts 241 | 15 . . . . 53 57 8 43 . 21 . 21 1 10 . 12 . . Haulers Intercepted 3 | . . . . . 3 . . . . . . . . . . . . . Recyclers Shooed . | . . . . . . . . . . . . . . . . . . . Parts Field Recycled . | . . . . . . . . . . . . . . . . . . . Retrieved Matter . | . . . . . . . . . . . . . . . . . . . Parts Self-Destructed . | . . . . . . . . . . . . . . . . . . . Prevented . | . . . . . . . . . . . . . . . . . . . Parts Restored . | . . . . . . . . . . . . . . . . . . . Kills | -11 -10 -10 -10 -9 -8 -8 -7 -7 -6 -6 -6 -6 -5 -5 -4 -4 -4 -4 ------- Run | Yrd Mat Min Exi Min Mat Gar Fac Gar Fac Gar Fac Gar Fac Gar Fac Gar Fac Gar Combat Hostiles Destroyed 100 | . . . . . 22 38 4 22 . 8 . 6 . . . . . . Melee 8 | . . . . . 1 . 2 1 . 3 . 1 . . . . . . Guns 51 | . . . . . 13 18 2 12 . 5 . 1 . . . . . . Cannons 2 | . . . . . . . . . . . . 2 . . . . . . AOE 35 | . . . . . 6 18 . 9 . . . 2 . . . . . . Classes Destroyed 13 | 2 . . . . 7 2 2 . . . . . . . . . . . Worker 1 | . . . . . . . 1 . . . . . . . . . . . Builder 2 | . . . . . 2 . . . . . . . . . . . . . Tunneler 4 | 4 . . . . . . . . . . . . . . . . . . Hauler 3 | . . . . . 3 . . . . . . . . . . . . . Recycler 2 | 1 . . . . 1 . . . . . . . . . . . . . Watcher 2 | . . . . . 1 . . . . . . . 1 . . . . . Swarmer 21 | . . . . . 4 4 . 8 . 3 . 2 . . . . . . Cutter 5 | . . . . . . 2 . 3 . . . . . . . . . . Grunt 51 | . . . . . 11 21 2 8 . 7 . 1 . . . 1 . . Brawler 2 | . . . . . . 2 . . . . . . . . . . . . Duelist 7 | . . . . . 2 3 1 . . 1 . . . . . . . . Sentry 16 | . . . . . 5 6 . 3 . . . . . 2 . . . . Programmer 5 | . . . . . . . 1 . . . . 4 . . . . . . Best Kill Streak 8 | 5 . . . . 7 8 2 7 . 5 . 3 1 . . . . . Combat Bots Only 8 | . . . . . 7 8 2 7 . 5 . 3 . . . . . . Max Kills in Single Turn 3 | 1 . . . . 3 3 1 3 . 1 . 1 1 1 . 1 . . Gunslinging . | . . . . . . . . . . . . . . . . . . . Exploded 3 | . . . . . 3 3 . 3 . . . 1 . . . . . . Melee 1 | . . . . . 1 . 1 1 . 1 . 1 . . . . . . Uniques/NPCs Destroyed . | . . . . . . . . . . . . . . . . . . . Combat | -11 -10 -10 -10 -9 -8 -8 -7 -7 -6 -6 -6 -6 -5 -5 -4 -4 -4 -4 -------- Run | Yrd Mat Min Exi Min Mat Gar Fac Gar Fac Gar Fac Gar Fac Gar Fac Gar Fac Gar Hostile Shots Fired 832 | . . . . . 115 135 55 104 3 59 . 67 39 12 . 54 50 139 Missed 314 | . . . . . 40 39 13 40 3 24 . 30 23 6 . 24 20 52 Hits 518 | . . . . . 75 96 42 64 . 35 . 37 16 6 . 30 30 87 Melee 25 | . . . . . 6 7 6 5 . 1 . . . . . . . . Projectile 493 | . . . . . 69 89 36 59 . 34 . 37 16 6 . 30 30 87 AOE 3 | . . . . . . 2 . . . . . . . . . 1 . . Critical Strikes 27 | . . . . . 5 7 3 3 . 1 . 4 . . . 1 1 2 Actively Blocked 2 | . . . . . . . . . . . . 1 . . . 1 . . Part Disruptions 2 | . . . . . . . 1 . . . . 1 . . . . . . Actively Blocked 1 | . . . . . . . . . . . . 1 . . . . . . Damage Taken 9545 | . . . . . 1814 1751 604 937 15 572 . 612 356 92 . 597 628 1567 Core 1812 | . . . . . 224 109 50 70 . 48 . 120 15 7 . 68 222 879 Absorbed by Shields 481 | . . . . . . 18 132 . . 46 . 81 . 35 . 54 47 68 Redirected to Shielding 717 | . . . . . . . . . 9 201 . 212 35 31 . 229 . . Ignored by Resistances 94 | . . . . . . 38 56 . . . . . . . . . . . Regen/Repaired (Parts) 437 | . . . . . 11 414 . . . . . . 12 . . . . . Core Remaining (%) 83 | 100 . . . 100 . 39 . 82 . . . 80 . 97 . . . . Volleys Fired 384 | 8 . . . . 77 96 17 6 . . . 80 27 24 5 27 13 4 Largest 2 | 2 . . . . 2 2 1 1 . . . 1 1 1 1 1 1 1 Hottest 138 | 90 . . . . 138 138 69 33 . . . 113 113 7 7 7 7 7 Shots Fired 567 | 16 . . . . 125 152 17 55 . 22 . 80 27 24 5 27 13 4 Gun 329 | 16 . . . . 98 124 17 49 . 22 . 3 . . . . . . Cannon 16 | . . . . . . . . . . . . 10 6 . . . . . Launcher 48 | . . . . . 8 28 . 6 . . . 6 . . . . . . Special 174 | . . . . . 19 . . . . . . 61 21 24 5 27 13 4 Kinetic 100 | . . . . . 29 . . 49 . 22 . . . . . . . . Thermal 261 | 16 . . . . 85 124 17 . . . . 13 6 . . . . . Explosive 48 | . . . . . 8 28 . 6 . . . 6 . . . . . . Electromagnetic 3 | . . . . . 3 . . . . . . . . . . . . . Robot Hit Streak 36 | 6 . . . . 13 25 5 18 . 13 . 28 36 6 10 13 5 2 Robot Miss Streak 4 | 1 . . . . 4 4 3 1 . 2 . 3 2 1 1 1 1 2 Penetration Max . | . . . . . . . . . . . . . . . . . . . Secondary Targets 3 | . . . . . 1 2 . . . . . . . . . . . . Max Gunslinging Chain 1 | . . . . . 1 1 . . . . . . . . . . . . Autonomous 71 | . . . . . . . . 49 . 22 . . . . . . . . Shots Hit Robots 507 | 12 . . 4 1 74 103 25 57 . 66 1 80 18 20 4 28 9 5 Core Hits 218 | 6 . . . . 57 70 10 34 . 14 . 16 1 2 . 8 . . Critical Kills 1 | . . . . . . . . 1 . . . . . . . . . . Critical Parts Destroyed 1 | . . . . . . . . 1 . . . . . . . . . . Critical Strikes 8 | 1 . . . . 2 2 1 2 . . . . . . . . . . Burn 5 | 1 . . . . 2 2 . . . . . . . . . . . . Destroy 2 | . . . . . . . . 2 . . . . . . . . . . Impale 1 | . . . . . . . 1 . . . . . . . . . . . Melee Attacks 336 | . . . 4 1 22 16 22 39 2 75 14 41 6 16 . 56 2 20 Impact . | . . . . . . . . . . . . . . . . . . . Slashing 120 | . . . . . 21 15 . . . 40 14 30 . . . . . . Piercing 159 | . . . . . . . 19 27 2 . . 11 6 16 . 56 2 20 Sneak Attacks 48 | . . . 4 1 1 1 4 9 . 19 . 5 . 2 . 2 . . Combat Hostiles 2 | . . . . . . . . 2 . . . . . . . . . . Follow-up Attacks . | . . . . . . . . . . . . . . . . . . . Damage Inflicted 13329 | 140 . . . . 2018 3650 523 2079 . 1805 33 2306 30 114 . 558 . 73 Guns 5209 | 140 . . . . 1322 1626 227 1326 . 539 . 29 . . . . . . Cannons 251 | . . . . . . . . . . . . 251 . . . . . . Explosions 4260 | . . . . . 637 2024 . 727 . . . 872 . . . . . . Melee 3582 | . . . . . 32 . 296 26 . 1266 33 1154 30 114 . 558 . 73 Ramming 27 | . . . . . 27 . . . . . . . . . . . . . Kinetic 2292 | . . . . . 427 . . 1326 . 539 . . . . . . . . Thermal 3131 | 140 . . . . 858 1626 227 . . . . 280 . . . . . . Explosive 4260 | . . . . . 637 2024 . 727 . . . 872 . . . . . . Electromagnetic 37 | . . . . . 37 . . . . . . . . . . . . . Impact . | . . . . . . . . . . . . . . . . . . . Slashing 2485 | . . . . . 32 . . . . 1266 33 1154 . . . . . . Piercing 1097 | . . . . . . . 296 26 . . . . 30 114 . 558 . 73 Highest Corruption 12 | . . . . . 2 2 . . . . . 3 . . . 5 12 12 Average Corruption 2 | . . . . . 2 2 . . . . . 2 . . . 4 5 12 Corruption Purged . | . . . . . . . . . . . . . . . . . . . Corruption Blocked . | . . . . . . . . . . . . . . . . . . . Effects 131 | . . . . . 36 30 . . . . . 27 . . . 13 17 8 Message Errors 31 | . . . . . 9 6 . . . . . 8 . . . 2 5 1 Matter Fused 31 | . . . . . 7 9 . . . . . 4 . . . 2 7 2 Heat Flow Errors 17 | . . . . . 4 2 . . . . . 4 . . . 3 2 2 Energy Discharges 16 | . . . . . 5 2 . . . . . 4 . . . 3 1 1 Parts Rejected 3 | . . . . . . 1 . . . . . . . . . 1 . 1 Parts Fused 1 | . . . . . . 1 . . . . . . . . . . . . Data Loss (minor) 21 | . . . . . 8 6 . . . . . 5 . . . 1 . 1 Data Loss (major) 8 | . . . . . 1 2 . . . . . 2 . . . 1 2 . Misfires 2 | . . . . . 2 . . . . . . . . . . . . . Weapon Failures 1 | . . . . . . 1 . . . . . . . . . . . . Overload Shots . | . . . . . . . . . . . . . . . . . . . Overflow Damage 435 | . . . . . 36 27 . 41 . 105 . 226 . . . . . . Projectiles 65 | . . . . . . . . . . . . 65 . . . . . . Explosions 187 | . . . . . 36 27 . 41 . . . 83 . . . . . . Melee 183 | . . . . . . . . . . 105 . 78 . . . . . . Knockbacks . | . . . . . . . . . . . . . . . . . . . Impact . | . . . . . . . . . . . . . . . . . . . Kinetic . | . . . . . . . . . . . . . . . . . . . Secondary . | . . . . . . . . . . . . . . . . . . . Self-Inflicted Damage 566 | . . . . . 244 184 . 138 . . . . . . . . . . Shots 15 | . . . . . 5 5 . 5 . . . . . . . . . . Rammed 3 | . . . . . 2 . 1 . . . . . . . . . . . Targets Rammed 4 | . . . . . 3 . 1 . . . . . . . . . . . Kicked . | . . . . . . . . . . . . . . . . . . . Crushed 1 | . . . . . 1 . . . . . . . . . . . . . Highest Temperature 307 | 120 . . . . 167 258 . 11 . . . 307 120 . . 130 248 182 Average Temperature 77 | 63 . . . . 59 81 . 7 . . . 97 53 . . 60 113 98 Received Heat Transfer 2168 | . . . . . 522 822 205 168 . 117 . 39 108 22 . 51 9 105 Siege Activations . | . . . . . . . . . . . . . . . . . . . Martial Activations . | . . . . . . . . . . . . . . . . . . . Shielding Activations . | . . . . . . . . . . . . . . . . . . . Robots Disrupted . | . . . . . . . . . . . . . . . . . . . Combat Hostiles . | . . . . . . . . . . . . . . . . . . . Robots Corrupted . | . . . . . . . . . . . . . . . . . . . Combat Hostiles . | . . . . . . . . . . . . . . . . . . . Parts Fried . | . . . . . . . . . . . . . . . . . . . Impact Corruptions . | . . . . . . . . . . . . . . . . . . . Robots Melted 4 | . . . . . 2 2 . . . . . . . . . . . . Combat Hostiles 4 | . . . . . 2 2 . . . . . . . . . . . . Parts Melted 24 | 2 . . . . 7 10 2 . . 3 . . . . . . . . Heat Transferred 6255 | 446 . . . . 1813 3330 444 . . . . 222 . . . . . . Parts Sabotaged . | . . . . . . . . . . . . . . . . . . . Parts Stolen . | . . . . . . . . . . . . . . . . . . . Parts Stripped . | . . . . . . . . . . . . . . . . . . . Power Chain Reactions . | . . . . . . . . . . . . . . . . . . . Alert | -11 -10 -10 -10 -9 -8 -8 -7 -7 -6 -6 -6 -6 -5 -5 -4 -4 -4 -4 ------- Run | Yrd Mat Min Exi Min Mat Gar Fac Gar Fac Gar Fac Gar Fac Gar Fac Gar Fac Gar Maximum Alert Level 5 | . . . . . 1 5 3 4 2 4 2 3 3 4 2 2 2 1 Low Security (%) 23 | 100 100 100 . 100 94 . . . . . . 5 5 . . 6 . 49 Level 1 18 | . . . . . 5 20 . 14 . 1 20 26 75 . 12 68 14 50 Level 2 23 | . . . . . . 16 56 36 100 22 79 36 10 11 87 24 85 . Level 3 23 | . . . . . . 18 43 40 . 38 . 31 8 81 . . . . Level 4 9 | . . . . . . 39 . 8 . 37 . . . 7 . . . . Level 5 . | . . . . . . 4 . . . . . . . . . . . . High Security . | . . . . . . . . . . . . . . . . . . . Max Security . | . . . . . . . . . . . . . . . . . . . Peak Influence 1635 | 15 9 . . . 325 1635 858 1159 610 1243 652 776 819 1139 597 645 587 307 Initial 858 | . 9 . . . . 212 858 310 608 402 652 170 405 560 597 183 338 225 Average 536 | 5 1 . . . 79 895 696 702 591 908 492 523 355 906 538 362 469 173 Influence Increases 8967 | 25 4 . . . 1004 1533 138 969 47 1011 21 892 952 899 . 812 450 210 Destroy 0b10 Robot/C 3890 | . . . . . 480 760 80 580 20 500 . 285 330 300 . 300 180 75 Destroy 0b10 Robot/NC 110 | 25 . . . . 35 . 5 . . 5 . 12 8 . . 12 8 . Destroy Leader 452 | . . . . . 128 40 20 30 . 38 . 32 76 16 . 24 40 8 Allied During Kill 1182 | . . . . . 4 3 . 71 8 119 . 59 356 210 . 204 135 13 Successful Hack 241 | . 4 . . . 44 30 . 6 12 18 . 17 38 39 . 20 13 . Disable Machine 123 | . . . . . 45 15 15 . . . 12 . 24 . . . 12 . Anti-Garrison Action 1771 | . . . . . . 550 . 200 . 188 . 341 . 302 . 152 . 38 Destroy Structure 646 | . . . . . 118 135 3 52 7 38 9 74 24 32 . 52 62 40 Partial Spotted 48 | . . . . . . . . . . . . 12 24 . . . . 12 Lose Combat Pursuer 504 | . . . . . 150 . 15 30 . 105 . 60 72 . . 48 . 24 Influence Decreases 8872 | 10 19 . . . 677 225 1329 254 631 343 1021 363 923 561 877 429 773 437 Entered New Map 4053 | . 6 . . . . 115 777 134 551 173 591 73 367 241 542 79 307 97 Time Decay 1914 | 10 13 . . . 487 . 362 . 40 . 310 . 386 . 60 . 246 . Lost Part 520 | . . . . . 20 70 40 80 . 30 . 50 10 . . 20 60 140 Lost Ally 1810 | . . . . . 20 40 . 40 40 140 120 240 160 320 . 330 160 200 Purge Threat 575 | . . . . . 150 . 150 . . . . . . . 275 . . . Squads Dispatched 18 | . 1 . . . 2 . 3 . . . 2 . 6 . . . 4 . Investigation 3 | . 1 . . . . . . . . . 1 . 1 . . . . . Extermination 4 | . . . . . . . 1 . . . 1 . 1 . . . 1 . Reinforcement 7 | . . . . . 2 . 1 . . . . . 1 . . . 3 . Assault 3 | . . . . . . . 1 . . . . . 2 . . . . . Garrison 1 | . . . . . . . . . . . . . 1 . . . . . Intercept . | . . . . . . . . . . . . . . . . . . . Searches Triggered . | . . . . . . . . . . . . . . . . . . . Construction Impeded 2 | . . . . . . . . . . . . . 1 . . . 1 . Haulers Reinforced . | . . . . . . . . . . . . . . . . . . . Active Scanning Responses . | . . . . . . . . . . . . . . . . . . . Cargo Convoy Interrupts . | . . . . . . . . . . . . . . . . . . . Stealth | -11 -10 -10 -10 -9 -8 -8 -7 -7 -6 -6 -6 -6 -5 -5 -4 -4 -4 -4 --------- Run | Yrd Mat Min Exi Min Mat Gar Fac Gar Fac Gar Fac Gar Fac Gar Fac Gar Fac Gar Distress Signals 17 | . 1 . . . 9 . . . . . . . 3 . . . 4 . Communications Jammed . | . . . . . . . . . . . . . . . . . . . Distress Signals . | . . . . . . . . . . . . . . . . . . . Times Spotted 360 | . 2 . . . 45 35 7 33 2 41 3 46 38 27 1 34 24 22 Peak Tracking Total 10 | . 2 . . . 7 8 3 7 2 6 2 7 8 7 1 10 7 9 Tactical Retreats 23 | . . . . . 6 . 1 2 . 4 . 2 3 . . 3 . 2 Traps | -11 -10 -10 -10 -9 -8 -8 -7 -7 -6 -6 -6 -6 -5 -5 -4 -4 -4 -4 ------- Run | Yrd Mat Min Exi Min Mat Gar Fac Gar Fac Gar Fac Gar Fac Gar Fac Gar Fac Gar Traps Triggered 25 | . . . . . . 2 . 1 . 5 . 7 . 3 . 4 1 2 Indirectly . | . . . . . . . . . . . . . . . . . . . Trap Hack Attempts 12 | . . . . . . . . 12 . . . . . . . . . . Triggered . | . . . . . . . . . . . . . . . . . . . Disarmed . | . . . . . . . . . . . . . . . . . . . Reprogrammed 1 | . . . . . . . . 1 . . . . . . . . . . Reused . | . . . . . . . . . . . . . . . . . . . Traps Extracted . | . . . . . . . . . . . . . . . . . . . Installed . | . . . . . . . . . . . . . . . . . . . Triggered . | . . . . . . . . . . . . . . . . . . . Machines | -11 -10 -10 -10 -9 -8 -8 -7 -7 -6 -6 -6 -6 -5 -5 -4 -4 -4 -4 ---------- Run | Yrd Mat Min Exi Min Mat Gar Fac Gar Fac Gar Fac Gar Fac Gar Fac Gar Fac Gar Machines Disabled 35 | . . . . . 3 4 1 4 . 4 1 6 2 4 . 4 1 1 Max in Single Turn 2 | . . . . . 2 1 1 1 . 1 1 1 1 1 . 1 1 1 Garrison Relay 26 | . . . . . . 3 . 4 . 4 . 6 . 4 . 4 . 1 Machines Repaired . | . . . . . . . . . . . . . . . . . . . Machines Dismantled . | . . . . . . . . . . . . . . . . . . . Machines Sabotaged . | . . . . . . . . . . . . . . . . . . . Overloaded Fab Kills . | . . . . . . . . . . . . . . . . . . . Hacking | -11 -10 -10 -10 -9 -8 -8 -7 -7 -6 -6 -6 -6 -5 -5 -4 -4 -4 -4 --------- Run | Yrd Mat Min Exi Min Mat Gar Fac Gar Fac Gar Fac Gar Fac Gar Fac Gar Fac Gar Machines Accessed 63 | . 1 . 2 1 13 2 3 3 4 3 6 4 8 5 1 3 4 . Terminals 42 | . 1 . . . 9 2 2 3 1 3 3 4 4 5 . 3 2 . Fabricators 4 | . . . . . . . . . 2 . 1 . 1 . . . . . Repair Stations 2 | . . . . . 1 . . . . . . . 1 . . . . . Recycling Units . | . . . . . . . . . . . . . . . . . . . Scanalyzers 5 | . . . . . 2 . . . . . 1 . 1 . . . 1 . Garrison Access 7 | . . . . . 1 . 1 . 1 . 1 . 1 . 1 . 1 . Total Hacks 153 | . 3 . 7 1 32 5 9 7 10 4 17 8 21 9 2 8 10 . Successful 82 | . 1 . 7 1 16 2 5 4 3 2 11 2 13 4 2 2 7 . Failed 71 | . 2 . . . 16 3 4 3 7 2 6 6 8 5 . 6 3 . Catastrophic 19 | . 1 . . . 3 1 4 . 2 1 2 2 1 1 . 1 . . Database Lockouts . | . . . . . . . . . . . . . . . . . . . Manual 31 | . . . 1 . 3 1 4 1 7 . 2 3 2 1 . 4 2 . Terminals 97 | . 3 . . . 24 5 7 7 2 4 5 8 10 9 . 8 5 . Fabricators 11 | . . . . . . . . . 7 . 2 . 2 . . . . . Repair Stations 6 | . . . . . 2 . . . . . . . 4 . . . . . Recycling Units . | . . . . . . . . . . . . . . . . . . . Scanalyzers 21 | . . . . . 5 . . . . . 9 . 3 . . . 4 . Garrison Access 10 | . . . . . 1 . 2 . 1 . 1 . 2 . 2 . 1 . Terminal Hacks 40 | . 1 . 7 1 9 2 3 3 . 2 . 2 3 4 . 1 2 . Record 6 | . . . 6 . . . . . . . . . . . . . . . Prototype ID Bank 6 | . . . . . 4 . 1 . . . . . . . . . 1 . Open Door 5 | . . . . 1 . . . 1 . 1 . 1 . 1 . . . . Branch Access Points 2 | . . . . . 1 . . . . . . . 1 . . . . . Emergency Access Points 5 | . . . . . . 1 . 1 . . . 1 . 1 . 1 . . Terminal Index 1 | . . . . . . . . . . . . . 1 . . . . . Unreport Threat 2 | . . . . . 1 . 1 . . . . . . . . . . . Locate Traps 3 | . 1 . . . 1 . . . . . . . 1 . . . . . Hauler Manifests 1 | . . . . . 1 . . . . . . . . . . . . . Zone Layout 3 | . . . . . 1 . 1 . . . . . . . . . 1 . Garrison Registry 3 | . . . . . . . . 1 . 1 . . . 1 . . . . Patrol Navigation 1 | . . . . . . . . . . . . . . 1 . . . . Security Stations 1 | . . . . . . 1 . . . . . . . . . . . . Proto ID Catalog 1 | . . . 1 . . . . . . . . . . . . . . . Fabricator Hacks 5 | . . . . . . . . . 1 . 2 . 2 . . . . . Network Status 1 | . . . . . . . . . . . 1 . . . . . . . Load Schematic 2 | . . . . . . . . . . . 1 . 1 . . . . . Build 2 | . . . . . . . . . 1 . . . 1 . . . . . Repair Station Hacks 5 | . . . . . 2 . . . . . . . 3 . . . . . Scan Component 3 | . . . . . 1 . . . . . . . 2 . . . . . Repair 2 | . . . . . 1 . . . . . . . 1 . . . . . Recycling Unit Hacks . | . . . . . . . . . . . . . . . . . . . Scanalyzer 19 | . . . . . 4 . . . . . 8 . 3 . . . 4 . Insert Component 4 | . . . . . 1 . . . . . 3 . . . . . . . Analyze 4 | . . . . . 1 . . . . . 3 . . . . . . . Retrieve Study 11 | . . . . . 2 . . . . . 2 . 3 . . . 4 . Garrison Access Hacks 10 | . . . . . 1 . 2 . 1 . 1 . 2 . 2 . 1 . Unlock Access 7 | . . . . . 1 . 1 . 1 . 1 . 1 . 1 . 1 . Coupler Status 3 | . . . . . . . 1 . . . . . 1 . 1 . . . Unauthorized Hacks 3 | . . . . . . . . 1 1 . . . . . . 1 . . Terminals 2 | . . . . . . . . 1 . . . . . . . 1 . . Botnet 2 | . . . . . . . . 1 . . . . . . . 1 . . Fabricators 1 | . . . . . . . . . 1 . . . . . . . . . Liberate 1 | . . . . . . . . . 1 . . . . . . . . . Repair Stations . | . . . . . . . . . . . . . . . . . . . Recycling Units . | . . . . . . . . . . . . . . . . . . . Scanalyzers . | . . . . . . . . . . . . . . . . . . . Garrison Access . | . . . . . . . . . . . . . . . . . . . Data Cores Recovered . | . . . . . . . . . . . . . . . . . . . Used . | . . . . . . . . . . . . . . . . . . . Hacking Detections 50 | . 1 . . . 11 1 1 2 4 2 6 4 7 3 1 3 4 . Full Trace Events 4 | . 1 . . . . . . . . . 1 1 1 . . . . . Feedback Events . | . . . . . . . . . . . . . . . . . . . Feedback Blocked . | . . . . . . . . . . . . . . . . . . . Robot Schematics Acquired . | . . . . . . . . . . . . . . . . . . . Robots Built . | . . . . . . . . . . . . . . . . . . . Authchips . | . . . . . . . . . . . . . . . . . . . Time . | . . . . . . . . . . . . . . . . . . . Total Robot Build Rating . | . . . . . . . . . . . . . . . . . . . Part Schematics Acquired 4 | . . . . . 1 . . . . . 3 . . . . . . . Parts Built 2 | . . . . . . . . . . . . . 2 . . . . . Authchips . | . . . . . . . . . . . . . . . . . . . Time 142 | . . . . . . . . . 106 . . . 36 . . . . . Total Part Build Rating 6 | . . . . . . . . . . . . . 6 . . . . . Part Studies Acquired 10 | . . . . . 2 . . . . . 2 . 2 . . . 4 . Parts Repaired 2 | . . . . . 1 . . . . . . . 1 . . . . . Time 174 | . . . . . 136 . . . . . . . 38 . . . . . Parts Recycled . | . . . . . . . . . . . . . . . . . . . Recycled Matter . | . . . . . . . . . . . . . . . . . . . Retrieved Matter . | . . . . . . . . . . . . . . . . . . . Retrieved Components . | . . . . . . . . . . . . . . . . . . . Parts Scanalyzed 4 | . . . . . 1 . . . . . 3 . . . . . . . Part Schematics Acquired 4 | . . . . . 1 . . . . . 3 . . . . . . . Parts Damaged 2 | . . . . . 1 . . . . . 1 . . . . . . . Bothacking | -11 -10 -10 -10 -9 -8 -8 -7 -7 -6 -6 -6 -6 -5 -5 -4 -4 -4 -4 ------------ Run | Yrd Mat Min Exi Min Mat Gar Fac Gar Fac Gar Fac Gar Fac Gar Fac Gar Fac Gar Used RIF Installer 6 | . . . . . . 1 . 1 . 1 . 1 . 1 . 1 . . Coupler Efficiency 2 | . . . . . . . . 1 . . . . . . . 1 . . Threat Obfuscator 1 | . . . . . . . . . . 1 . . . . . . . . Program Shield 1 | . . . . . . . . . . . . 1 . . . . . . Autooverride 1 | . . . . . . . . . . . . . . 1 . . . . Robots Hacked 123 | . . . 4 1 1 1 3 4 . 19 . 27 14 20 3 15 5 6 Non-combat 13 | . . . 3 1 1 1 3 . . . . . . . 3 . 1 . Combat 110 | . . . 1 . . . . 4 . 19 . 27 14 20 . 15 4 6 Autooverrided 14 | . . . . . . . . . . . . . . 7 . 2 . 5 Robot Hacks Applied 117 | . . . 4 1 1 1 3 4 . 19 . 27 18 14 4 13 6 2 parse_system 7 | . . . 4 1 . . . . . . . . 1 . . . 1 . no_distress 1 | . . . . . 1 . . . . . . . . . . . . . find_chute 1 | . . . . . . . 1 . . . . . . . . . . . drop_inventory 3 | . . . . . . . 2 . . . . . . . 1 . . . purge_threat 2 | . . . . . . . . . . . . . . . 2 . . . find_garrison 1 | . . . . . . . . . . . . . 1 . . . . . scatter_targeting 2 | . . . . . . . . . . 1 . . 1 . . . . . disrupt_area 1 | . . . . . . . . . . . . . 1 . . . . . spike_heat 5 | . . . . . . . . . . 1 . 1 3 . . . . . overload_power 3 | . . . . . . . . . . . . 1 2 . . . . . amplify_resonance 5 | . . . . . . . . . . . . 2 1 . . 1 1 . disable_weapons 2 | . . . . . . . . . . . . 2 . . . . . . reboot_system 5 | . . . . . . . . . . . . 1 1 2 . 1 . . go_dormant 1 | . . . . . . . . . . 1 . . . . . . . . overwrite_iff 28 | . . . . . . . . 1 . 6 . 6 4 3 . 6 . 2 formatsys_low 1 | . . . . . . 1 . . . . . . . . . . . . formatsys_high 49 | . . . . . . . . 3 . 10 . 14 3 9 1 5 4 . Relay Couplers Released 107 | . . . . . . 13 . 16 . 16 . 27 . 15 . 15 . 5 Machine Destruction 104 | . . . . . . 13 . 16 . 16 . 24 . 15 . 15 . 5 Programmers 3 | . . . . . . . . . . . . 3 . . . . . . Attached 53 | . . . . . . 2 . 6 . 8 . 13 3 7 1 7 4 2 Fabnet Peak Effective % . | . . . . . . . . . . . . . . . . . . . Robots Rewired 19 | . . . . . . 2 . 2 . 3 . 9 . 1 . 2 . . Allies Hacked . | . . . . . . . . . . . . . . . . . . . Hacks Repelled . | . . . . . . . . . . . . . . . . . . . Allies | -11 -10 -10 -10 -9 -8 -8 -7 -7 -6 -6 -6 -6 -5 -5 -4 -4 -4 -4 -------- Run | Yrd Mat Min Exi Min Mat Gar Fac Gar Fac Gar Fac Gar Fac Gar Fac Gar Fac Gar Total Allies 119 | . . . . 2 . 3 . 8 . 20 . 31 7 20 1 15 4 8 Largest Group 20 | . . . . 2 2 2 1 6 6 10 10 18 20 14 11 13 5 2 Highest-Rated Group 697 | . . . . 46 46 39 23 250 250 297 297 670 697 500 378 493 379 175 Highest-Rated Ally 119 | . . . . 31 31 23 23 95 95 95 47 47 49 49 49 119 119 95 Total Orders 46 | . . . . . . 4 1 . . 4 2 8 4 10 2 9 2 . STAY 25 | . . . . . . 1 1 . . 2 1 5 2 5 1 6 1 . FOLLOW 19 | . . . . . . 1 . . . 2 1 3 2 5 1 3 1 . AID 2 | . . . . . . 2 . . . . . . . . . . . . Ally Attacks 752 | . . . . . 13 8 . 21 14 114 10 94 142 144 . 100 55 37 Total Damage 20163 | . . . . . 251 84 . 832 250 2504 141 2087 3861 3346 . 3483 2585 739 Kills 131 | . . . . . 2 . . 7 1 19 . 13 28 22 . 20 14 5 Allies Corrupted . | . . . . . . . . . . . . . . . . . . . Allies Melted 1 | . . . . . . . . . . . . . . . . . . 1 Intel | -11 -10 -10 -10 -9 -8 -8 -7 -7 -6 -6 -6 -6 -5 -5 -4 -4 -4 -4 ------- Run | Yrd Mat Min Exi Min Mat Gar Fac Gar Fac Gar Fac Gar Fac Gar Fac Gar Fac Gar Active Infowar (turns) 8612 | 8 158 114 379 542 2842 . . . . 38 681 136 838 1951 124 117 481 203 Optics 684 | . . . . . . . . . . . . . . . . . 481 203 Sensors 1762 | . . 2 . . 17 . . . . 38 681 136 756 . . . 22 110 Terrain 2612 | . . . . . 2612 . . . . . . . . . . . . . Seismic 1647 | 8 158 112 379 542 448 . . . . . . . . . . . . . Cloaking 2 | . . . . . . . . . . . . . 2 . . . . . Jamming 2582 | . . . . . . . . . . . . . 390 1951 124 117 . . ECM 10 | . . . . . . . . . . . . . 10 . . . . . Robot Analysis Total . | . . . . . . . . . . . . . . . . . . . Derelict Logs Recovered 1 | . . . . 1 . . . . . . . . . . . . . . Drone Launches 6 | . . . . . . . . . . . . . . . . . . 6 Drone Recoveries 3 | . . . . . . . . . . . . . . . . . . 3 Exploration | -11 -10 -10 -10 -9 -8 -8 -7 -7 -6 -6 -6 -6 -5 -5 -4 -4 -4 -4 ------------- Run | Yrd Mat Min Exi Min Mat Gar Fac Gar Fac Gar Fac Gar Fac Gar Fac Gar Fac Gar Turns Passed 16741 | 78 158 114 379 544 2886 2368 821 1191 93 1059 681 1590 905 1951 124 1075 521 203 Spaces Moved 12813 | 49 167 100 333 469 1302 1199 441 669 121 1101 880 1523 1099 1464 182 1071 467 176 Core 79 | 4 . . . . . . . . . . . . . 52 . . . 23 Treads 2933 | . . . . . 800 1199 441 493 . . . . . . . . . . Legs . | . . . . . . . . . . . . . . . . . . . Wheels 1616 | 45 167 100 333 469 502 . . . . . . . . . . . . . Hover . | . . . . . . . . . . . . . . . . . . . Flight 8185 | . . . . . . . . 176 121 1101 880 1523 1099 1412 182 1071 467 153 Fastest Speed 28 | 50 80 110 110 110 110 161 161 50 50 50 50 50 50 50 42 42 28 30 Average Speed 94 | 78 90 110 110 110 147 163 162 144 50 52 50 59 54 110 42 55 81 38 Slowest Speed 1350 | 100 110 110 110 110 170 224 219 240 50 150 50 150 150 1350 42 132 680 100 Overloaded Moves . | . . . . . . . . . . . . . . . . . . . Propulsion Burnouts . | . . . . . . . . . . . . . . . . . . . Robots Hopped 6 | . . . . . . . . . . . . . 1 . . . 3 2 Potential Cave-ins . | . . . . . . . . . . . . . . . . . . . Cave-ins Triggered 1 | . . . . . 1 . . . . . . . . . . . . . Exploration Rate (%) 47 | 4 37 24 70 91 83 77 9 69 3 83 12 94 18 89 5 95 16 20 Regions Visited 18 Branch Regions 3 Pre-discovered Areas 1 | . . . 1 . . . . . . . . . . . . . . . Known Exits Taken 7 | . . . . . 1 . 1 . 1 . 1 . 1 . 1 . 1 . Unknown Exits Taken 5 | 1 1 1 1 1 . . . . . . . . . . . . . . Scrap Searched 2 | . . 1 . 1 . . . . . . . . . . . . . . Spaces Dug 105 | . . . . . 29 . 3 1 1 5 9 14 8 4 . 18 1 12 Terrain Destroyed 427 | . . . . . 138 147 3 35 1 7 9 42 10 4 . 18 1 12 Melee 88 | . . . . . 16 . 3 1 1 5 9 13 5 4 . 18 1 12 Projectile 31 | . . . . . 18 1 . 3 . 2 . 2 5 . . . . . AOE 308 | . . . . . 104 146 . 31 . . . 27 . . . . . . Terrain Rammed . | . . . . . . . . . . . . . . . . . . . Walls Destroyed . | . . . . . . . . . . . . . . . . . . . Machines Disabled . | . . . . . . . . . . . . . . . . . . . Actions | -11 -10 -10 -10 -9 -8 -8 -7 -7 -6 -6 -6 -6 -5 -5 -4 -4 -4 -4 --------- Run | Yrd Mat Min Exi Min Mat Gar Fac Gar Fac Gar Fac Gar Fac Gar Fac Gar Fac Gar Total 16503 | 68 173 103 346 498 2075 1428 494 838 148 1499 1102 2090 1371 1752 227 1433 590 268 Wait 2067 | 1 2 . . 16 570 43 1 56 23 215 197 296 181 174 31 142 70 49 Move 12780 | 48 166 99 332 468 1302 1197 440 667 120 1099 879 1521 1097 1462 181 1069 461 172 Hop 6 | . . . . . . . . . . . . . 1 . . . 3 2 Pick Up 132 | 4 4 2 7 5 25 12 2 7 . 13 3 13 7 9 1 15 2 1 Fast Attach 67 | 7 . . . . 4 3 5 7 1 3 1 7 8 5 . 5 5 6 Attach 77 | . . . . . 5 6 . 15 . 8 . 6 8 3 2 10 10 4 Detach 46 | . . . . . . . . 8 . 6 1 4 7 1 1 8 7 3 Swap 198 | . 1 2 1 2 39 24 4 14 2 13 2 28 17 4 4 26 14 1 Drop 120 | . . . 2 6 28 9 2 7 . 5 5 10 12 9 2 15 3 5 Fire 384 | 8 . . . . 77 96 17 6 . . . 80 27 24 5 27 13 4 Melee 336 | . . . 4 1 22 16 22 39 2 75 14 41 6 16 . 56 2 20 Ram . | . . . . . . . . . . . . . . . . . . . Kick . | . . . . . . . . . . . . . . . . . . . Crush 4 | . . . . . 3 . 1 . . . . . . . . . . . Escape Stasis 254 | . . . . . . 2 . . . 62 . 84 . 45 . 60 . 1 Rewire 20 | . . . . . . 20 . . . . . . . . . . . . Trap 12 | . . . . . . . . 12 . . . . . . . . . . Miscellaneous . | . . . . . . . . . . . . . . . . . . . Route ------- -11/Scrapyard -10/Materials -10/Mines -10/Exiles (discovered 2 exits: *Min x2) -9/Mines (discovered 2 exits: *Mat x2) -8/Materials (discovered 4 exits: *Fac x3 / Gar) -8/Garrison (discovered 3 exits: *Fac x3) -7/Factory (discovered 2 exits: [Low] / Gar) -7/Garrison (discovered 3 exits: *Fac x3) -6/Factory -6/Garrison (discovered 3 exits: *Fac x3) -6/Factory (discovered 3 exits: *Fac / *Low / Gar) -6/Garrison (discovered 3 exits: *Fac x3) -5/Factory (discovered 3 exits: Upp x2 / Gar) -5/Garrison (discovered 3 exits: *Fac x3) -4/Factory -4/Garrison (discovered 3 exits: *Fac x3) -4/Factory (discovered 2 exits: [*Res] / Gar) -4/Garrison History --------- Turn | Location | Event 25 | -11/Scrapyard | Discovered new exit (range 15) 79 | -11/Scrapyard | Entered Materials 129 | -10/Materials | Discovered new exit (range 12) 158 | -10/Materials | Met 8R-AWN 237 | -10/Materials | Entered Mines 239 | -10/Mines | Followed 8R-AWN into the Mines 241 | -10/Mines | Met a Derelict bent on vengeance 269 | -10/Mines | Found a damaged Exp. Sensor Array with a note attached 272 | -10/Mines | Found Prototype Device 272 | -10/Mines | Identified Exp. Sensor Array 314 | -10/Mines | Build established: Mutant 338 | -10/Mines | Discovered new exit (range 13) 351 | -10/Mines | Entered Exiles 369 | -10/Exiles | Discovered new exit (range 15) 381 | -10/Exiles | Welcomed by 8R-AWN 400 | -10/Exiles | Met EX-HEX 433 | -10/Exiles | Met EX-BIN 450 | -10/Exiles | Aligned with FarCom system 451 | -10/Exiles | Given EX-Vault access code 480 | -10/Exiles | Opened EX-Vault 486 | -10/Exiles | Found AWS/Gauss 488 | -10/Exiles | Found Superbattery 494 | -10/Exiles | Found Flying Fortress v7 517 | -10/Exiles | Warned to stay clear of 0b10 Research branches 551 | -10/Exiles | Met EX-DEC 640 | -10/Exiles | Learned location of Zion (-6) 721 | -10/Exiles | Discovered new exit (range 10) 730 | -10/Exiles | Stole three prototypes: Flying Fortress v7, Superbattery, AWS/Gauss 730 | -10/Exiles | Entered Mines 890 | -9/Mines | Found the Drone Emporium 897 | -9/Mines | Found Prototype Device 898 | -9/Mines | Identified Thief Drone Bay 935 | -9/Mines | Learned location of 1 exit from Materials 1028 | -9/Mines | Discovered new exit (range 6) 1126 | -9/Mines | Discovered new exit (range 16) 1274 | -9/Mines | Entered Materials 1274 | -8/Materials | Accompanied by 2 allies 1274 | -8/Materials | Evolved 4 slots: Propulsion x2, Utility x2 1275 | -8/Materials | Identified exit to Factory 1279 | -8/Materials | Led the pair of lost Derelicts to an unsafe place 1954 | -8/Materials | Build established: Skirmisher 1964 | -8/Materials | Crushed by falling debris 2098 | -8/Materials | Discovered exit to Factory (range 9) 3285 | -8/Materials | Build established: Assassin 3321 | -8/Materials | Repaired Broken Exp. Sensor Array? 4035 | -8/Materials | Destroyed 7 combat bots 4076 | -8/Materials | Discovered exit to Factory (range 5) 4160 | -8/Materials | Identified exit to Garrison 4160 | -8/Materials | Entered Garrison 4373 | -8/Garrison | Triggered checkpoint 4404 | -8/Garrison | Build established: Mutant 4471 | -8/Garrison | Installed Relay Interface Framework 4497 | -8/Garrison | Garrison Relay disabled 4590 | -8/Garrison | Triggered checkpoint 4634 | -8/Garrison | Triggered checkpoint 4696 | -8/Garrison | Triggered checkpoint 4838 | -8/Garrison | Core integrity fell below 50% 4842 | -8/Garrison | Triggered checkpoint 4885 | -8/Garrison | Destroyed 8 combat bots 4887 | -8/Garrison | Discovered exit to Factory (range 13) 5032 | -8/Garrison | Triggered checkpoint 5125 | -8/Garrison | Discovered exit to Factory (range 9) 5188 | -8/Garrison | Triggered checkpoint 5468 | -8/Garrison | Triggered checkpoint 5982 | -8/Garrison | Triggered checkpoint 6030 | -8/Garrison | Discovered exit to Factory (range 13) 6124 | -8/Garrison | Learned Factory security intel 6154 | -8/Garrison | Triggered checkpoint 6394 | -8/Garrison | Garrison Relay disabled 6528 | -8/Garrison | Entered Factory 6528 | -7/Factory | Accompanied by 1 ally 6528 | -7/Factory | Evolved 2 slots: Utility x2 6530 | -7/Factory | FarCom data flow suspended 6710 | -7/Factory | Discovered new exit (range 20) 7156 | -7/Factory | Identified exit to Garrison 7328 | -7/Factory | First assault squad dispatched 7349 | -7/Factory | Entered Garrison 7445 | -7/Garrison | Triggered checkpoint 7503 | -7/Garrison | Garrison Relay disabled 7663 | -7/Garrison | Triggered checkpoint 7796 | -7/Garrison | Destroyed 7 combat bots 7809 | -7/Garrison | Triggered checkpoint 7885 | -7/Garrison | Discovered new exit (range 9) 7951 | -7/Garrison | Triggered checkpoint 7952 | -7/Garrison | Garrison Relay disabled 8007 | -7/Garrison | Found embedded Infiltrators 8117 | -7/Garrison | Build established: Scavenger-Mutant 8301 | -7/Garrison | Triggered checkpoint 8313 | -7/Garrison | Triggered checkpoint 8380 | -7/Garrison | Expanded RIF knowledge: Coupler Efficiency 8395 | -7/Garrison | Discovered new exit (range 49) 8395 | -7/Garrison | Discovered new exit (range 52) 8395 | -7/Garrison | Discovered new exit (range 23) 8397 | -7/Garrison | Triggered checkpoint 8436 | -7/Garrison | Garrison Relay disabled 8466 | -7/Garrison | Garrison Relay disabled 8540 | -7/Garrison | Entered Factory 8540 | -6/Factory | Accompanied by 6 allies 8540 | -6/Factory | Evolved 2 slots: Utility x2 8580 | -6/Factory | Identified exit to Garrison 8632 | -6/Factory | Build established: Bothacker-Mutant 8633 | -6/Factory | Entered Garrison 8633 | -6/Garrison | Accompanied by 4 allies 8671 | -6/Garrison | Triggered checkpoint 8727 | -6/Garrison | Garrison Relay disabled 8750 | -6/Garrison | Lost 4 allies 8865 | -6/Garrison | Triggered checkpoint 8871 | -6/Garrison | Triggered checkpoint 8936 | -6/Garrison | Discovered new exit (range 10) 8973 | -6/Garrison | Triggered checkpoint 9029 | -6/Garrison | Discovered new exit (range 12) 9041 | -6/Garrison | Triggered checkpoint 9065 | -6/Garrison | Garrison Relay disabled 9110 | -6/Garrison | Rescued a captive Derelict 9143 | -6/Garrison | Triggered checkpoint 9153 | -6/Garrison | Triggered checkpoint 9197 | -6/Garrison | Triggered checkpoint 9222 | -6/Garrison | Garrison Relay disabled 9231 | -6/Garrison | Lost 3 allies 9233 | -6/Garrison | Expanded RIF knowledge: Threat Obfuscation 9261 | -6/Garrison | Discovered new exit (range 12) 9357 | -6/Garrison | Triggered checkpoint 9374 | -6/Garrison | Garrison Relay disabled 9392 | -6/Garrison | Discovered new exit (range 101) 9392 | -6/Garrison | Discovered new exit (range 22) 9392 | -6/Garrison | Discovered new exit (range 48) 9649 | -6/Garrison | Found Fusion Bomb Launcher 9692 | -6/Garrison | Entered Factory 9692 | -6/Factory | Accompanied by 10 allies 9741 | -6/Factory | Discovered new exit (range 7) 9859 | -6/Factory | Discovered new exit (range 13) 9970 | -6/Factory | Identified exit to Garrison 10215 | -6/Factory | Identified exit to Lower Caves 10373 | -6/Factory | Entered Garrison 10373 | -6/Garrison | Accompanied by 2 allies 10401 | -6/Garrison | Lost 5 allies 10411 | -6/Garrison | Triggered checkpoint 10427 | -6/Garrison | Garrison Relay disabled 10570 | -6/Garrison | Spotted B-75 Beast 10579 | -6/Garrison | Allies destroyed B-75 Beast 10585 | -6/Garrison | Lost 4 allies 10750 | -6/Garrison | Lost 3 parts (2p1u) 10859 | -6/Garrison | Triggered checkpoint 10933 | -6/Garrison | Expanded RIF knowledge: Program Shield 11013 | -6/Garrison | Discovered new exit (range 14) 11061 | -6/Garrison | Garrison Relay disabled 11116 | -6/Garrison | Discovered new exit (range 10) 11127 | -6/Garrison | Triggered checkpoint 11176 | -6/Garrison | Garrison Relay disabled 11181 | -6/Garrison | Triggered checkpoint 11289 | -6/Garrison | Triggered checkpoint 11291 | -6/Garrison | Garrison Relay disabled 11342 | -6/Garrison | Garrison Relay disabled 11361 | -6/Garrison | Discovered new exit (range 9) 11387 | -6/Garrison | Triggered checkpoint 11405 | -6/Garrison | Garrison Relay disabled 11469 | -6/Garrison | Triggered checkpoint 11575 | -6/Garrison | Triggered checkpoint 11585 | -6/Garrison | Build established: Botlord-Mutant 11865 | -6/Garrison | Rescued a captive Derelict 11865 | -6/Garrison | Rescued a captive Derelict 11963 | -6/Garrison | Entered Factory 11963 | -5/Factory | Accompanied by 18 allies 11963 | -5/Factory | Evolved 2 slots: Utility x2 12099 | -5/Factory | Repaired Adv. Weight Redist. System? 12170 | -5/Factory | Build established: Commander-Mutant 12286 | -5/Factory | Identified exit to Upper Caves 12767 | -5/Factory | Lost 5 allies 12785 | -5/Factory | Garrison activated, responded to threat 12787 | -5/Factory | Fabricated Imp. Propulsion Shielding (x2) 12832 | -5/Factory | Identified exit to Garrison 12863 | -5/Factory | First assault squad dispatched 12868 | -5/Factory | Entered Garrison 12868 | -5/Garrison | Accompanied by 11 allies 12883 | -5/Garrison | Expanded RIF knowledge: Autooverride 12902 | -5/Garrison | Triggered checkpoint 12952 | -5/Garrison | Lost 4 allies 12981 | -5/Garrison | Garrison Relay disabled 13052 | -5/Garrison | Rescued a captive Derelict 13144 | -5/Garrison | Triggered checkpoint 13192 | -5/Garrison | Lost 3 allies 13210 | -5/Garrison | Triggered checkpoint 13218 | -5/Garrison | Triggered checkpoint 13244 | -5/Garrison | Triggered checkpoint 13287 | -5/Garrison | Build established: Botlord-Mutant 13594 | -5/Garrison | Triggered checkpoint 13731 | -5/Garrison | Discovered new exit (range 13) 14052 | -5/Garrison | Garrison Relay disabled 14114 | -5/Garrison | Triggered checkpoint 14123 | -5/Garrison | Garrison Relay disabled 14172 | -5/Garrison | Discovered new exit (range 10) 14244 | -5/Garrison | Triggered checkpoint 14295 | -5/Garrison | Discovered new exit (range 9) 14301 | -5/Garrison | Discovered new exit (range 51) 14301 | -5/Garrison | Discovered new exit (range 6) 14301 | -5/Garrison | Discovered new exit (range 93) 14819 | -5/Garrison | Entered Factory 14819 | -4/Factory | Accompanied by 10 allies 14819 | -4/Factory | Evolved 2 slots: Power x1, Propulsion x1 14881 | -4/Factory | Identified exit to Garrison 14943 | -4/Factory | Entered Garrison 14943 | -4/Garrison | Accompanied by 11 allies 15027 | -4/Garrison | Triggered checkpoint 15053 | -4/Garrison | Garrison Relay disabled 15121 | -4/Garrison | Spotted B-86 Titan 15124 | -4/Garrison | Triggered checkpoint 15128 | -4/Garrison | Triggered checkpoint 15167 | -4/Garrison | Lost 4 allies 15222 | -4/Garrison | Lost 3 allies 15225 | -4/Garrison | Allies destroyed B-86 Titan 15287 | -4/Garrison | Triggered checkpoint 15361 | -4/Garrison | Discovered new exit (range 12) 15409 | -4/Garrison | Triggered checkpoint 15454 | -4/Garrison | Garrison Relay disabled 15458 | -4/Garrison | Lost 3 allies 15470 | -4/Garrison | Spotted Executioner 15470 | -4/Garrison | Spotted Executioner 15529 | -4/Garrison | Lost 6 allies 15550 | -4/Garrison | Rewired Executioner 15554 | -4/Garrison | Rewired Executioner 15561 | -4/Garrison | Allies destroyed Executioner 15706 | -4/Garrison | Expanded RIF knowledge: Coupler Efficiency 15751 | -4/Garrison | Triggered checkpoint 15770 | -4/Garrison | Discovered new exit (range 15) 15853 | -4/Garrison | Triggered checkpoint 15894 | -4/Garrison | Triggered checkpoint 15947 | -4/Garrison | Garrison Relay disabled 15969 | -4/Garrison | Triggered checkpoint 15996 | -4/Garrison | Discovered new exit (range 13) 16018 | -4/Garrison | Entered Factory 16018 | -4/Factory | Accompanied by 5 allies 16059 | -4/Factory | Discovered new exit (range 19) 16076 | -4/Factory | Found Prototype Device 16076 | -4/Factory | Identified Adv. Kinecellerator 16413 | -4/Factory | P-70 Sage assimilated allied Administrator 7a 16523 | -4/Factory | System corruption reached 10% 16539 | -4/Factory | Identified exit to Garrison 16539 | -4/Factory | Entered Garrison 16556 | -4/Garrison | Lost 5 parts (2n3u) 16559 | -4/Garrison | Triggered checkpoint 16599 | -4/Garrison | Garrison Relay disabled 16680 | -4/Garrison | Core integrity fell below 50% 16690 | -4/Garrison | Found embedded Infiltrators 16719 | -4/Garrison | Lost 12 parts (2p4n5u1w) 16736 | -4/Garrison | Core integrity fell below 20% 16742 | -4/Garrison | Destroyed by Y-64 Sentinel with Wave Gun Last Messages --------------- 16719_ Slug penetrates G-67 Veteran. 16719_ G-67 Veteran suffers critical hit (Destroy). 16719_ Slug penetrates G-67 Veteran. 16720_ L4-QX3(x) destroyed. 16728_ Penetrated by Slug. 16728_ Slug penetrates Wall. 16735_ Penetrated by Slug. 16735_ Slug penetrates Wall. 16735_ Acquired 20 matter. 16736_ System corrupted: Heat flow error (+216). 16736_ Relay Coupler [NC] destroyed. 16736_ Penetrated by Slug. 16737_ Acquired Lgt. Antimatter Reactor. 16740_ Acquired 62 matter. 16740_ Triggered Fusion Bomb Trap. 16740_ An explosion rips through the floor. 16740_ Penetrated by Slug. 16740_ Relay Coupler [Swarmer] destroyed. 16741_ Acquired 48 matter. 16741_ Drone sends a signal. Map ----- +----------------------------------------------------+ | ????????????????????###????????###??????????? | | ???????????????????##"##########"##?????????? | | ???????????????????# ##????????? | | ??????????????????## "#????????? | | ??????????????????#" ##????????? | | ??????????????????## #########"##?????????? | | ???????????????????# #???????# #??????????? | | ???????????????????# #???????# #??????????? | | ???????????????????# ######??# #??????????? | | ???????????????????# #??# #??????????? | | ???????????????????# #??# #??????????? | | ???????????????????# ### #??# #??????????? | | ???????????????????# #?# #??# #??????????? | | ??????????????????## #?# ##?# #??????????? | | ??????????????????#" #?# ## #??????????? | | ??????????????????## #?# " #??????????? | | ???????????????????# #?# ####??????????? | | ???????????????????# #?# #???????????????? | | ???????????????????# #?# #???????????????? | | ???????????????????# #?# #???????????????? | | ??????????????????## #?# ###?????????????? | | ??????????????????#" #?# !# #?????????????? | | ??###?????????????## ### ! #?????????????? | | ###"################ "## !"#?????????????? | | %* ;# "#?????????????? | | + @ #"#?????????????? | | [ !####????????????? | | ==###"###""############ !!Y [ ###########??? | | [[#?###?# ????????????## ##= #??? | | ^^#??????????????????#![ != %h ##?? | | ^^% ?????????????##]% %= [g "#?? | | %=#######?????????????### " ##?? | | ==#?????????????????????# # """ """"#? | | #?????????????????????######## " "###? | | #????????????????????????????# "#??? | | #????????????????????????????# " "#??? | | #????????????????????????????# """""#??? | | #????????????????????????????###########??? | | #?????????????????????????????????????????? | | #?????????????????????????????????????????? | | ?????????????????????????????????????????? | | ?????????????????????????????????????????? | | ?????????????????????????????????????????? | | ?????????????????????????????????????????? | | ##????????????????????????????????????????? | | #?????????????????????????????????????????? | | ?????????????????????????????????????????? | | ?????????????????????????????????????????? | | ?????????????????????????????????????????? | | +##?????????????????????????????????????????? | +----------------------------------------------------+ Best States ------------- Heat Dissipation 56 Energy Generation 45 Energy Capacity 1740 Matter Stores 300 Matter Capacity 300 Sight Range 23 Robot Scan Range 20 Terrain Scan Range 16 Terrain Scan Density 210 ECM Strength 2 Jamming Range 12 Additional Mass Support 9 Corruption Block 8 Armor Coverage 375 Resistance: TH 10 Propulsion Shielding 66 Point Defense Rating 240 Evasion (%) 70 Recoil Reduction 4 Energy Filtering 30 Relay Coupler Types 6 Relay Coupler Value 267 Item Schematics ----------------- Exp. Sensor Array | -8/Materials | Scanalyzed Imp. Propulsion Shielding | -6/Factory | Scanalyzed Adv. Remote Force Field | -6/Factory | Scanalyzed EM Disruption Field | -6/Factory | Scanalyzed Robot Schematics ------------------ None Fabricated ------------ Imp. Propulsion Shielding | x2 | -5/Factory Repaired ---------- Exp. Sensor Array | 62% | -8/Materials | Broken Adv. Weight Redist. System | 50% | -5/Factory Studied --------- Arm. Treads | -8/Materials | Hacked Rocket Launcher | -8/Materials | Hacked Lgt. Angular Momentum Engine | -6/Factory | Hacked Remote Datajack | -6/Factory | Hacked Lgt. Fission Core | -5/Factory | Hacked Hvy. Pick | -5/Factory | Hacked Field Propulsion Array | -4/Factory | Hacked Imp. Surge Thruster | -4/Factory | Hacked Mic. Nuclear Core | -4/Factory | Hacked Imp. Remote Datajack | -4/Factory | Hacked Alien Tech Used ----------------- None Achievements -------------- Follow The Leader Hackathon Challenges ------------ None Game ------ Seed HackingMicrowarpDetector Manual? 0 Play Time 03:45:37 Cumulative 497.9 hours Start 2026.09.15 @ 00:54:53 End 2026.09.15 @ 13:12:11 Sessions 3 Manual Loads 0 Difficulty Rogue Special Mode None Game No. 369 Rogue 369 Adventurer 0 Explorer 0 Win Type - Total 10 Types 4/0/4/2/0/0/0/0/0/0 Lore% 64 Gallery% 72 Achievement% 60 Wizard Run 0 Options --------- Layout 2 ASCII 0 Keyboard 1 Movement Vi Keybinds 0 Fullscreen 2 Font 32/Smallcaps Map View 77x44 Zoom Use 0% Tactical HUD 1 Map Filters NONE Filters NONE Steam 1 RUN: 40758f5d-f9a3-4ba4-8703-2591976c8f4c